Cogmind - Beta 14 @@@ ROGUE MODE // 2024.10.11 @ 18:14:56 Player: morimori Result: Destroyed by S-27 Virus with Autogun Performance ------------- Evolutions (6) 3000 Regions Visited (27) 5400 Robots Destroyed (155) 775 Value Destroyed (4205) 4205 Prototype IDs (56) 1120 Alien Tech Used (2) 400 Bonus (2081) 2081 TOTAL SCORE: 16981 Bonus ------- High Alert Combat Kills 196 Follower Combat Kills 2283 Network Hubs Disabled 400 Aligned with FarCom 300 Met Data Miner 300 Built Enhanced Grunts 300 A7 Reached Mainframe 300 Friendly Fire -1998 Cogmind --------- Core Integrity 0/1150 Matter 173/300 Energy 98/100 System Corruption 14% Temperature Cool (0) Movement Core (50) Location -4/Armory Parts ------- > --- POWER (2) -------- (None) > --- PROPULSION (6) --- (None) > --- UTILITY (10) ----- Advanced Signal Interpreter Advanced Terrain Scan Processor Makeshift Hacking Suite Advanced System Shield > --- WEAPON (2) ------- (None) > --- INVENTORY (5) ---- Large Storage Unit Quantum Capacitor Improved Force Field Authchip [Processor] Peak State ------------ > --- POWER ------------ Heavy Antimatter Reactor > --- PROPULSION ------- Flexi-carbon Leg Myomer Leg Myomer Leg Antigrav System Antigrav System Improved Antigrav System > --- UTILITY ---------- Large Storage Unit Advanced Signal Interpreter Advanced Terrain Scan Processor Experimental Thermal Shield Makeshift Hacking Suite Improved Hacking Suite Improved Hacking Suite Improved Hacking Suite > --- WEAPON ----------- Advanced KE Penetrator Hardcell Cannon > --- INVENTORY -------- Gravmag Array Launcher Loader Quantum Capacitor Improved Phase Shifter Improved Shield Generator Authchip [Device] Authchip [Processor] Tiamat Missile Launcher Tiamat Missile Launcher Power Maul [Rating: 106] Favorites ----------- Power Ion Engine Engine Ion Engine Power Core Light Fission Core Reactor Particle Reactor Propulsion Improved Hover Unit Treads Experimental Biometal Medium Treads Leg Carbon-fiber Leg Wheel Wheel Hover Unit Improved Hover Unit Flight Unit Improved Flight Unit Utility Improved Hacking Suite Device Improved Terrain Scanner Storage Large Storage Unit Processor Improved Signal Interpreter Hackware Improved Hacking Suite Protection Improved Propulsion Shielding Weapon High-powered Shotgun Energy Gun Heavy EM Pulse Gun Energy Cannon Light EM Pulse Cannon Ballistic Gun High-powered Shotgun Ballistic Cannon Hardcell Cannon Launcher Precision Grenade Launcher Impact Weapon Heavy Mace Build | -11 -10 -10 -9 -9 -9 -8 -8 -8 -7 -7 -7 -7 -6 -6 -6 -6 -6 -5 -5 -5 -5 -5 -5 -4 -4 -4 -4 ------- Run | Yrd Mat Min Mat Min Exi Min Mat Sto Fac Low Low Dat Pro Fac Low Low Zio Pro Fac Ext Cet Arc Hub Fac Was Fac Arm Slots Evolved 12 | . . . 2 . . . 2 . 2 . . . . 2 . . . . 2 . . . . 2 . . . Power 1 | . . . . . . . . . . . . . . . . . . . . . . . . 1 . . . Propulsion 3 | . . . . . . . 2 . 1 . . . . . . . . . . . . . . . . . . Utility 8 | . . . 2 . . . . . 1 . . . . 2 . . . . 2 . . . . 1 . . . Weapon . | . . . . . . . . . . . . . . . . . . . . . . . . . . . . Parts Attached 293 | 7 18 3 57 . 1 2 20 21 28 2 2 . 2 10 8 3 3 3 11 21 1 18 2 10 2 28 10 Power 21 | 1 1 . 3 . . . 2 . 2 . . . 2 1 . . . . 1 1 . 1 . . . 3 3 Engine 9 | 1 1 . 3 . . . 1 . 1 . . . 1 . . . . . 1 . . . . . . . . Core 7 | . . . . . . . 1 . 1 . . . 1 1 . . . . . 1 . . . . . 1 1 Reactor 5 | . . . . . . . . . . . . . . . . . . . . . . 1 . . . 2 2 Propulsion 83 | 2 6 . 9 . . . 3 4 8 1 1 . . 2 1 . 1 1 3 11 . 9 1 5 2 10 3 Treads 2 | . . . . . . . . . . . . . . . . . . . . . . . . . 2 . . Leg 19 | . . . . . . . . . . . . . . . . . . . . 10 . . . 4 . 4 1 Wheel 22 | 2 6 . 8 . . . 2 4 . . . . . . . . . . . . . . . . . . . Hover 39 | . . . . . . . 1 . 8 1 1 . . 2 1 . 1 1 3 1 . 9 1 1 . 6 2 Flight 1 | . . . 1 . . . . . . . . . . . . . . . . . . . . . . . . Utility 106 | 2 1 2 27 . 1 2 5 8 13 1 . . . 4 3 1 2 1 6 4 1 6 1 4 . 7 4 Device 64 | 1 . 2 20 . . 1 2 7 9 . . . . 1 3 1 2 1 2 2 . 3 1 2 . 3 1 Storage 7 | 1 1 . . . . . . . 1 . . . . . . . . . 1 . . . . . . 2 1 Processor 10 | . . . 1 . 1 . 1 . 1 1 . . . 1 . . . . 1 . . . . 1 . 1 1 Hackware 10 | . . . . . . . . . . . . . . 2 . . . . 2 1 . 2 . 1 . 1 1 Protection 15 | . . . 6 . . 1 2 1 2 . . . . . . . . . . 1 1 1 . . . . . Artifact . | . . . . . . . . . . . . . . . . . . . . . . . . . . . . Weapon 83 | 2 10 1 18 . . . 10 9 5 . 1 . . 3 4 2 . 1 1 5 . 2 . 1 . 8 . Energy Gun 6 | . 1 1 3 . . . . . . . . . . . . . . . . . . . . . . 1 . Energy Cannon 20 | . 3 . 1 . . . 2 4 1 . 1 . . 1 2 . . 1 . 2 . 1 . 1 . . . Ballistic Gun 30 | 2 3 . 9 . . . 7 5 . . . . . . . . . . . . . . . . . 4 . Ballistic Cannon 1 | . . . . . . . . . . . . . . . . . . . . . . . . . . 1 . Launcher 16 | . 3 . 3 . . . 1 . 1 . . . . 1 1 1 . . . 3 . . . . . 2 . Special Weapon . | . . . . . . . . . . . . . . . . . . . . . . . . . . . . Impact Weapon 10 | . . . 2 . . . . . 3 . . . . 1 1 1 . . 1 . . 1 . . . . . Slashing Weapon . | . . . . . . . . . . . . . . . . . . . . . . . . . . . . Piercing Weapon . | . . . . . . . . . . . . . . . . . . . . . . . . . . . . Special Melee Weapon . | . . . . . . . . . . . . . . . . . . . . . . . . . . . . Unidentified Prototypes 20 | . . 1 3 . . . 2 1 2 . . . . 2 1 . 1 1 . . 1 . . . 1 4 . Corrupted Parts 3 | . . 1 . . . . . . . . . . . . . . . . 1 . . . . . . . 1 System Corruption 7 | . . 1 . . . . . . . . . . . . . . . . 3 . . . . . . . 3 Parts Lost 55 | . 2 . 2 . . . 1 1 . 1 . . . . . . . . 10 3 . . 5 4 . 16 10 Power 3 | . . . . . . . . . . . . . . . . . . . 1 . . . . . . 1 1 Propulsion 32 | . 1 . 1 . . . 1 1 . 1 . . . . . . . . 6 2 . . 5 1 . 9 4 Utility 15 | . . . . . . . . . . . . . . . . . . . 3 1 . . . 3 . 3 5 Weapon 5 | . 1 . 1 . . . . . . . . . . . . . . . . . . . . . . 3 . Highest Loss Streak 10 | . 1 . 1 . . . 1 1 . 1 . . . . . . . . 10 2 . . 5 3 . 6 10 To Critical Strikes 1 | . . . 1 . . . . . . . . . . . . . . . . . . . . . . . . Average Slot Usage (%) 91 | . 99 100 99 100 99 100 96 99 92 92 92 92 92 93 97 98 100 100 85 73 94 98 98 68 44 66 53 Engine 5 | . 14 14 10 11 11 11 6 . 4 . . . . . . . . . 1 1 . . . . . . . Core 2 | . . . . . . . 2 9 2 7 7 7 6 6 6 6 6 6 3 3 5 . . . . . 2 Leg 3 | . . . . . . . . . . . . . . . . . . . . 23 27 13 . 5 . 7 6 Wheel 11 | . 27 28 21 22 22 22 29 33 . . . . . . . . . . . . . . . . . . . Hover 13 | . . . . . . . 2 2 37 38 38 38 38 33 35 37 37 37 24 6 5 19 31 7 . 5 4 Device 11 | . 14 14 19 22 15 9 7 8 14 15 15 15 15 13 12 10 12 12 9 . 6 5 1 5 . 4 8 Storage 8 | . 14 14 11 11 11 11 9 9 7 7 7 7 7 6 6 6 6 6 5 5 5 5 5 4 . 4 1 Processor 11 | . . . 10 11 17 22 18 18 15 15 15 15 15 13 12 12 12 12 11 11 11 11 11 10 15 13 12 Hackware 6 | . . . . . . . . . . . . . . 13 12 12 12 12 17 11 16 19 27 23 20 19 15 Energy Cannon 4 | . 9 28 3 . . . 3 3 6 . 5 7 7 1 5 1 . 1 5 3 . 4 5 3 . . . Ballistic Gun 6 | . 12 . 13 22 22 22 14 14 . . . . . . . . . . . . . . . . . 2 . Launcher 1 | . . . . . . . . . . . . . . . . 4 6 6 2 4 5 . . . . . . Impact Weapon 1 | . . . 1 . . . . . 1 7 1 . . 4 4 5 6 4 2 . . 4 5 3 . . . Peak Build Rating 106 | 8 12 21 25 25 31 31 36 36 48 45 47 47 48 64 70 72 72 75 80 87 91 93 85 77 62 106 84 Average Rating 44 | 6 9 13 22 25 28 30 33 32 41 43 45 47 47 57 67 65 68 71 67 64 90 89 84 66 59 81 62 On Entrance 46 | . 8 12 17 25 25 31 31 33 32 43 45 47 47 47 63 70 66 68 75 55 87 91 85 69 34 62 45 Naked Turns . | . . . . . . . . . . . . . . . . . . . . . . . . . . . . Heaviest Build 105 | 14 94 95 102 96 96 99 105 103 46 31 36 36 36 38 37 39 38 39 39 56 56 59 47 46 . 57 41 Greatest Support 115 | 20 26 20 32 22 22 22 48 50 48 36 37 37 37 43 50 50 54 58 58 95 85 85 54 35 3 115 45 Greatest Overweight (x) 5 | . 4 4 5 4 4 4 2 2 1 . . . . 1 . . . . 3 4 . 2 2 3 . 1 1 Average Overweight (x) . | . 3 4 3 4 4 4 1 1 . . . . . . . . . . . . . . . 1 . . . Largest Inventory Capacity 25 | 8 25 25 25 25 25 25 25 25 25 15 15 15 15 15 15 15 15 15 15 15 15 15 15 15 5 15 15 Average Capacity 18 | 7 24 25 25 25 25 25 25 25 15 15 15 15 15 15 15 15 15 15 15 15 15 15 15 13 5 13 8 Most Carried 25 | 8 25 25 25 25 25 25 25 25 25 15 15 15 15 15 15 15 15 15 15 15 15 15 15 15 5 14 5 Average Carried 17 | 4 19 24 24 24 24 25 24 24 14 14 12 15 15 14 11 14 14 15 14 14 15 14 14 12 5 8 4 Final Capacity 25 | 8 25 25 25 25 25 25 25 25 15 15 15 15 15 15 15 15 15 15 15 15 15 15 15 5 5 5 5 Final Carried 25 | 8 25 25 25 25 25 25 25 25 15 14 15 15 15 15 13 15 15 15 14 15 15 15 14 5 5 5 5 Class Distribution -------------------- 23% | Hacker-Mutant 22% | Mutant 12% | Scout 11% | Scavenger-Mutant 7% | Hacker-Scout 7% | Commander-Mutant 5% | Scavenger-Skirmisher 4% | Skirmisher Dominant Class ---------------- Mutant | -10/Materials Scavenger-Mutant | -10/Mines Mutant | -9/Materials Mutant | -9/Mines Skirmisher | -9/Exiles Skirmisher | -8/Mines Scavenger-Skirmisher | -8/Materials Scavenger-Skirmisher | -8/Storage Scout | -7/Factory Scout | -7/Lower Caves Scout | -7/Lower Caves Scout | -7/Data Miner Scout | -6/Proximity Caves Hacker-Scout | -6/Factory Hacker-Scout | -6/Lower Caves Hacker-Mutant | -6/Lower Caves Hacker-Mutant | -6/Zion Hacker-Mutant | -5/Proximity Caves Hacker-Mutant | -5/Factory Hacker-Mutant | -5/Extension Commander-Mutant | -5/Cetus Commander-Mutant | -5/Archives Wizard-Mutant | -5/Hub_04(d) Wizard-Mutant | -4/Factory Hacker-Mutant | -4/Waste Hacker-Mutant | -4/Factory Hacker-Mutant | -4/Armory Resources | -11 -10 -10 -9 -9 -9 -8 -8 -8 -7 -7 -7 -7 -6 -6 -6 -6 -6 -5 -5 -5 -5 -5 -5 -4 -4 -4 -4 ----------- Run | Yrd Mat Min Mat Min Exi Min Mat Sto Fac Low Low Dat Pro Fac Low Low Zio Pro Fac Ext Cet Arc Hub Fac Was Fac Arm Matter Collected 5469 | 338 425 189 890 8 . 78 445 422 106 240 20 . 20 60 156 56 30 30 329 398 114 309 10 90 . 511 195 Remotely . | . . . . . . . . . . . . . . . . . . . . . . . . . . . . Salvage Created 5169 | 197 800 138 881 33 . 143 488 318 106 144 25 . . 68 49 6 . . 151 439 270 310 . 211 . 392 . Parts 286 | 11 46 7 63 3 . 9 25 25 3 1 . . . 2 5 . . . 2 20 8 23 . 7 . 26 . Haulers Intercepted 10 | . 1 . 6 . . . 2 1 . . . . . . . . . . . . . . . . . . . Recyclers Shooed 5 | . 1 . . . . 1 . . . . . . . . . . . . . 2 . . . . . 1 . Parts Field Recycled . | . . . . . . . . . . . . . . . . . . . . . . . . . . . . Retrieved Matter . | . . . . . . . . . . . . . . . . . . . . . . . . . . . . Parts Self-Destructed 11 | . . . . . . . . . . 1 4 . . . 3 . . 3 . . . . . . . . . Prevented . | . . . . . . . . . . . . . . . . . . . . . . . . . . . . Kills | -11 -10 -10 -9 -9 -9 -8 -8 -8 -7 -7 -7 -7 -6 -6 -6 -6 -6 -5 -5 -5 -5 -5 -5 -4 -4 -4 -4 ------- Run | Yrd Mat Min Mat Min Exi Min Mat Sto Fac Low Low Dat Pro Fac Low Low Zio Pro Fac Ext Cet Arc Hub Fac Was Fac Arm Combat Hostiles Destroyed 76 | . 14 . 20 1 . 4 3 5 1 . . . . . 3 1 . . 3 11 3 . . . . 7 . Melee 2 | . . . . . . . . . . . . . . . . . . . 2 . . . . . . . . Guns 38 | . 8 . 15 1 . 4 3 5 . . . . . . . . . . . . . . . . . 2 . Cannons 4 | . 1 . 1 . . . . . . . . . . . . . . . . 1 . . . . . 1 . AOE 24 | . 5 . 4 . . . . . . . . . . . 3 . . . . 8 . . . . . 4 . Classes Destroyed 17 | 3 5 1 2 . . . . . 1 . . . . . . 1 . . . 3 . . . . . 1 . Worker 13 | 1 2 1 . . . . . 4 . . . . . . . . . . . 1 . . . . . 4 . Builder 5 | . . . 1 . . . . . . . . . . . . . . . . . . . . . . 4 . Tunneler 6 | 4 . 1 . . . . . . . . . . . . . . . . . . . . . . . 1 . Hauler 10 | . 1 . 6 . . . 2 1 . . . . . . . . . . . . . . . . . . . Recycler 6 | 1 1 . 1 . . 1 2 . . . . . . . . . . . . . . . . . . . . Operator 16 | . 2 . 1 . . . 1 1 2 . . . . . . . . . . . . 9 . . . . . Watcher 17 | . 3 . 3 . . . 4 1 1 . . . . 3 . . . . 1 . 1 . . . . . . Swarmer 31 | . 3 . 11 . . 4 . 3 . . . . . . 3 . . . . 5 . . . . . 2 . Grunt 24 | . 11 . 5 1 . . 1 1 . . . . . . . . . . . 2 . . . . . 3 . Sentry 7 | . . . 4 . . . 2 1 . . . . . . . . . . . . . . . . . . . Programmer 5 | . . . . . . . . . 1 . . . . . . . . . 3 . . . . . . 1 . Heavy 1 | . . . . . . . . . . . . . . . . . . . . . . . . . . 1 . Cetus Guard 3 | . . . . . . . . . . . . . . . . . . . . . 3 . . . . . . Enhanced Grunt 2 | . . . . . . . . . . . . . . . . . . . . . . . . 1 . 1 . Zionite 1 | . . 1 . . . . . . . . . . . . . . . . . . . . . . . . . Packrat 2 | . . . . . . . . . . 2 . . . . . . . . . . . . . . . . . Master Thief 1 | . . . . . . . . . . . . . . . . 1 . . . . . . . . . . . Thug 2 | . . 1 . . . . . . . . . . . . . . . . . . . . . 1 . . . Savage 1 | . . . . . . . . . . . . . . . . . . . . 1 . . . . . . . Butcher 2 | . . . . . . . . . . . . . . . . . . . . 2 . . . . . . . Guerrilla 2 | . . . . . . . . . . . . . . . . . . . . 1 . . . 1 . . . Best Kill Streak 6 | 4 3 1 4 1 . 4 2 5 1 . . . . 1 3 1 . . 2 5 4 2 . . . 6 . Combat Bots Only 5 | . 3 . 4 1 . 4 1 3 1 . . . . . 3 1 . . 2 5 3 . . . . 3 . Max Kills in Single Turn 3 | 1 2 1 2 1 . 2 1 1 1 1 . . . 1 2 1 . . 1 2 2 1 . 1 . 3 . Gunslinging 1 | . . . 1 . . . . . . . . . . . . . . . . . . . . . . . . Exploded 2 | . 2 . 2 . . . . . . . . . . . 2 . . . . 2 . . . . . 2 . Melee 1 | . . . . . . . . . . . . . . . . . . . 1 . . . . . . . . Uniques/NPCs Destroyed . | . . . . . . . . . . . . . . . . . . . . . . . . . . . . Combat | -11 -10 -10 -9 -9 -9 -8 -8 -8 -7 -7 -7 -7 -6 -6 -6 -6 -6 -5 -5 -5 -5 -5 -5 -4 -4 -4 -4 -------- Run | Yrd Mat Min Mat Min Exi Min Mat Sto Fac Low Low Dat Pro Fac Low Low Zio Pro Fac Ext Cet Arc Hub Fac Was Fac Arm Hostile Shots Fired 604 | . 57 . 93 7 . 12 24 21 26 5 . . . . 5 9 . . 57 25 9 1 6 18 . 143 86 Missed 195 | . 20 . 24 . . 5 4 8 7 2 . . . . 3 7 . . 17 9 2 . 1 9 . 43 34 Damage Taken 8023 | . 637 54 604 330 . 57 265 129 326 47 . . . . 32 8 . . 799 549 150 30 351 432 . 2290 933 Core 2174 | . 165 . 94 65 . 10 27 72 45 14 . . . . 18 8 . . 237 166 89 . 11 159 . 539 455 Absorbed by Shields 207 | . . . 135 . . . . 28 . . . . . . . . . . . 7 37 . . . . . . Redirected to Shielding 24 | . . . . . . . . . . . . . . . . . . . . 5 19 . . . . . . Ignored by Resistances 286 | . . . . . . . 19 11 . . . . . . . . . . . . . . . . . 256 . Regen/Repaired (Parts) 173 | . 40 . 62 . . . 37 . 12 . . . . 22 . . . . . . . . . . . . . Core Remaining (%) 72 | 100 . 34 . . . 57 . 82 . . . . 91 . . . . 96 . . . . 49 . . . . Volleys Fired 497 | 17 65 8 50 1 . 6 46 48 51 . 7 . 7 . 3 2 . 6 24 28 5 72 . 21 . 30 . Largest 2 | 2 2 2 2 2 . 2 2 2 1 . 1 . 1 . 1 1 . 1 1 1 1 1 . 1 . 2 . Hottest 112 | 40 112 112 112 50 . 50 90 90 65 . 65 . 65 . 90 36 . 90 90 90 50 90 . 90 . 111 . Shots Fired 723 | 34 124 17 97 2 . 12 86 79 51 . 7 . 7 . 3 2 . 6 24 28 5 72 . 21 . 46 . Gun 391 | 34 106 1 84 2 . 12 72 58 . . . . . . . . . . . . . . . . . 22 . Cannon 272 | . 12 16 10 . . . 14 21 51 . 7 . 7 . 1 . . 6 24 8 . 64 . 21 . 10 . Launcher 60 | . 6 . 3 . . . . . . . . . . . 2 2 . . . 20 5 8 . . . 14 . Special . | . . . . . . . . . . . . . . . . . . . . . . . . . . . . Kinetic 353 | 34 75 . 71 2 . 12 72 58 . . . . . . . . . . . . . . . . . 29 . Thermal 225 | . . 1 . . . . 14 21 51 . 7 . 7 . 1 . . 6 24 8 . 64 . 21 . . . Explosive 30 | . 6 . 3 . . . . . . . . . . . 2 2 . . . 3 . . . . . 14 . Electromagnetic 115 | . 43 16 23 . . . . . . . . . . . . . . . . 17 5 8 . . . 3 . Robot Hit Streak 15 | 12 11 13 7 2 . 3 9 9 5 . 7 . . . 8 10 . . 1 6 3 8 . 5 . 15 . Robot Miss Streak 12 | 2 5 1 5 1 . 4 12 1 . . . . . . . . . . 1 3 . 3 . 1 . 2 . Penetration Max . | . . . . . . . . . . . . . . . . . . . . . . . . . . . . Secondary Targets 4 | . . . 3 . . 1 . . . . . . . . . . . . . . . . . . . . . Max Gunslinging Chain 1 | . . . 1 . . 1 . . . . . . . . . . . . . . . . . . . . . Shots Hit Robots 432 | 25 80 12 61 2 . 8 54 42 17 3 2 . . 3 1 4 . . 18 6 3 38 1 15 . 37 . Core Hits 247 | 10 42 5 41 1 . 6 20 15 1 . 1 . . 1 3 . . . 2 25 10 20 . 8 . 36 . Critical Kills 5 | . 1 . 3 . . . . . . . . . . . . . . . 1 . . . . . . . . Critical Parts Destroyed 8 | . . . 1 . . . . . 1 1 . . . . . . . . 4 . . . . . . 1 . Critical Strikes 18 | . 2 1 5 . . . . . 1 1 . . . . . 1 . . 5 . . . . . . 2 . Meltdown 1 | . . . . . . . . . . . . . . . . . . . 1 . . . . . . . . Destroy 5 | . 1 . 3 . . . . . . . . . . . . . . . . . . . . . . 1 . Blast 1 | . . . . . . . . . . . . . . . . . . . . . . . . . . 1 . Corrupt 3 | . 1 1 1 . . . . . . . . . . . . . . . . . . . . . . . . Smash 8 | . . . 1 . . . . . 1 1 . . . . . 1 . . 4 . . . . . . . . Melee Attacks 62 | . . . 3 . . . . . 21 3 1 . . 3 . 6 2 1 20 . . . 2 . . . . Impact 62 | . . . 3 . . . . . 21 3 1 . . 3 . 6 2 1 20 . . . 2 . . . . Slashing . | . . . . . . . . . . . . . . . . . . . . . . . . . . . . Piercing . | . . . . . . . . . . . . . . . . . . . . . . . . . . . . Sneak Attacks 2 | . . . 1 . . . . . . 1 . . . . . . . . . . . . . . . . . Combat Hostiles . | . . . . . . . . . . . . . . . . . . . . . . . . . . . . Follow-up Attacks . | . . . . . . . . . . . . . . . . . . . . . . . . . . . . Damage Inflicted 14387 | 272 1248 453 1680 33 . 137 1093 743 653 146 54 . . 163 178 263 . . 740 1598 431 1473 38 375 . 2608 8 Guns 4306 | 272 714 22 989 33 . 137 918 717 . . . . . . . . . . . . . . . . . 504 . Cannons 3013 | . 293 277 162 . . . 169 26 26 . 54 . . . . . . . 36 81 . 1210 . 375 . 304 . Explosions 5180 | . 241 154 453 . . . . . . . . . . . 178 167 . . . 1517 431 263 . . . 1776 . Melee 1850 | . . . 76 . . . . . 627 146 . . . 163 . 96 . . 704 . . . 38 . . . . Ramming 38 | . . . . . . . 6 . . . . . . . . . . . . . . . . . . 24 8 Kinetic 4119 | 272 454 . 837 33 . 137 918 717 . . . . . . . . . . . . . . . . . 751 . Thermal 2650 | . 44 176 110 . . . 169 26 26 . 54 . . . . . . . 36 287 . 1210 . 375 . 137 . Explosive 3036 | . 197 . 343 . . . . . . . . . . . 178 167 . . . 512 . . . . . 1639 . Electromagnetic 2694 | . 553 277 314 . . . . . . . . . . . . . . . . 799 431 263 . . . 57 . Impact 1850 | . . . 76 . . . . . 627 146 . . . 163 . 96 . . 704 . . . 38 . . . . Slashing . | . . . . . . . . . . . . . . . . . . . . . . . . . . . . Piercing . | . . . . . . . . . . . . . . . . . . . . . . . . . . . . Highest Corruption 14 | . . 1 . . . . . . 3 . . . . . . . . . 6 4 4 4 . 1 10 10 14 Average Corruption 3 | . . 1 . . . . . . 1 . . . . . . . . . 3 2 4 3 . 1 7 5 6 Corruption Purged 22 | . . . . . . . . . 3 . . . . . . . . . 5 . . 4 . . . 10 . Corruption Blocked . | . . . . . . . . . . . . . . . . . . . . . . . . . . . . Effects 93 | . . . . . . . . . 3 . . . . . . . . . 4 20 10 9 . . 3 26 18 Message Errors 23 | . . . . . . . . . 3 . . . . . . . . . 2 5 1 . . . 1 6 5 Matter Fused 25 | . . . . . . . . . . . . . . . . . . . 1 4 6 3 . . 1 7 3 Heat Flow Errors 10 | . . . . . . . . . . . . . . . . . . . 1 2 1 2 . . . 3 1 Energy Discharges 15 | . . . . . . . . . . . . . . . . . . . . 4 . 1 . . 1 5 4 Parts Rejected 1 | . . . . . . . . . . . . . . . . . . . . 1 . . . . . . . Data Loss (minor) 12 | . . . . . . . . . . . . . . . . . . . . 2 2 3 . . . 2 3 Data Loss (major) 5 | . . . . . . . . . . . . . . . . . . . . 2 . . . . . 2 1 Misfires 1 | . . . . . . . . . . . . . . . . . . . . . . . . . . 1 . Misdirections 1 | . . . . . . . . . . . . . . . . . . . . . . . . . . . 1 Overload Shots . | . . . . . . . . . . . . . . . . . . . . . . . . . . . . Overflow Damage 1088 | . 22 10 30 . . . . 10 175 79 21 . . 53 . 6 . . 334 61 . 98 . . . 189 . Projectiles 212 | . 16 10 . . . . . 10 . . 21 . . . . . . . . . . 98 . . . 57 . Explosions 235 | . 6 . 30 . . . . . . . . . . . . 6 . . . 61 . . . . . 132 . Melee 641 | . . . . . . . . . 175 79 . . . 53 . . . . 334 . . . . . . . . Knockbacks 12 | . . . . . . . . . 4 2 . . . . . 1 . . 2 . . . . . . 3 . Impact 9 | . . . . . . . . . 4 2 . . . . . 1 . . 2 . . . . . . . . Kinetic 3 | . . . . . . . . . . . . . . . . . . . . . . . . . . 3 . Secondary . | . . . . . . . . . . . . . . . . . . . . . . . . . . . . Self-Inflicted Damage 399 | . 203 55 74 . . . 3 . . . . . . . . . . . . . . . . . . 61 3 Shots 11 | . 6 2 2 . . . . . . . . . . . . . . . . . . . . . . 1 . Rammed 11 | . . . . . . . 1 . . . . . . . . . . . . . . . . . . 7 3 Targets Rammed 11 | . . . . . . . 1 . . . . . . . . . . . . . . . . . . 7 3 Kicked . | . . . . . . . . . . . . . . . . . . . . . . . . . . . . Crushed . | . . . . . . . . . . . . . . . . . . . . . . . . . . . . Highest Temperature 254 | . 120 216 66 . . . 204 102 126 2 54 . 90 . 42 . . 184 168 100 237 154 . 254 . 251 131 Average Temperature 49 | . 30 69 16 . . . 63 20 39 2 23 . 40 . 27 . . 72 76 31 123 76 . 112 . 90 72 Received Heat Transfer 961 | . 222 . 85 . . . 126 46 . 27 . . . . . . . . . 54 20 . 60 . . 321 . Effects 4 | . . . . . . . . . . . . . . . . . . . . . 1 . . 3 . . . Energy Bleed 1 | . . . . . . . . . . . . . . . . . . . . . 1 . . . . . . Interference 3 | . . . . . . . . . . . . . . . . . . . . . . . . 3 . . . Siege Activations . | . . . . . . . . . . . . . . . . . . . . . . . . . . . . Robots Corrupted 15 | . 1 . . . . . . . 3 1 . . . 2 . 1 . . 1 2 4 . . . . . . Combat Hostiles 7 | . . . . . . . . . 1 . . . . . . 1 . . . 2 3 . . . . . . Parts Fried 29 | . 3 . 3 . . . . . 6 . . . . 5 . 2 . . 2 2 5 . . 1 . . . Impact Corruptions 34 | . . . . . . . . . 13 3 . . . 3 . 1 . . 14 . . . . . . . . Robots Melted 1 | . . . . . . . . . . . . . . . . . . . 1 . . . . . . . . Combat Hostiles 1 | . . . . . . . . . . . . . . . . . . . 1 . . . . . . . . Parts Melted 10 | . . . . . . . . . 1 . . . . . . . . . 4 . . 4 . . . 1 . Heat Transferred 3638 | . 50 237 250 . . . 222 37 37 . 74 . . . . . . . 37 311 . 1628 . 555 . 200 . Parts Sabotaged . | . . . . . . . . . . . . . . . . . . . . . . . . . . . . Parts Stolen 1 | . . . . . . . . . . . . . . . . 1 . . . . . . . . . . . Parts Stripped . | . . . . . . . . . . . . . . . . . . . . . . . . . . . . Power Chain Reactions 9 | . 1 2 2 . . . . . . . . . . . . . . . . 3 . . . . . 1 . Alert | -11 -10 -10 -9 -9 -9 -8 -8 -8 -7 -7 -7 -7 -6 -6 -6 -6 -6 -5 -5 -5 -5 -5 -5 -4 -4 -4 -4 ------- Run | Yrd Mat Min Mat Min Exi Min Mat Sto Fac Low Low Dat Pro Fac Low Low Zio Pro Fac Ext Cet Arc Hub Fac Was Fac Arm Peak Influence 1061 | 30 285 100 358 151 . 95 160 255 154 . . . . 55 . . . . 498 658 444 372 351 228 71 1061 550 Initial 487 | . 19 1 1 121 . . 37 39 42 . . . . . . . . . 450 71 305 177 70 196 71 49 487 Average 171 | 11 89 45 189 94 . 89 57 75 72 . . . . 25 . . . . 324 232 423 270 117 217 71 393 448 Maximum Alert Level 3 | . 1 . 1 . . . . 1 . . . . . . . . . . 2 2 2 1 1 1 . 3 2 Low Security (%) 68 | 100 97 100 51 100 . 100 100 96 100 . . . . 100 . . . . 39 52 . 10 85 18 100 42 . Level 1 21 | . 2 . 48 . . . . 3 . . . . . . . . . . 15 35 13 89 14 81 . 26 34 Level 2 7 | . . . . . . . . . . . . . . . . . . . 45 12 86 . . . . . 65 Level 3 2 | . . . . . . . . . . . . . . . . . . . . . . . . . . 31 . Level 4 . | . . . . . . . . . . . . . . . . . . . . . . . . . . . . Level 5 . | . . . . . . . . . . . . . . . . . . . . . . . . . . . . High Security . | . . . . . . . . . . . . . . . . . . . . . . . . . . . . Max Security . | . . . . . . . . . . . . . . . . . . . . . . . . . . . . Squads Dispatched 28 | . 3 . . 1 . . 2 2 6 . . . . 2 . . . . 3 . . . 2 . . 4 3 Investigation 14 | . 1 . . 1 . . 1 1 3 . . . . 2 . . . . 1 . . . 2 . . . 2 Extermination 6 | . . . . . . . . . 2 . . . . . . . . . 1 . . . . . . 2 1 Reinforcement 8 | . 2 . . . . . 1 1 1 . . . . . . . . . 1 . . . . . . 2 . Assault . | . . . . . . . . . . . . . . . . . . . . . . . . . . . . Garrison . | . . . . . . . . . . . . . . . . . . . . . . . . . . . . Intercept . | . . . . . . . . . . . . . . . . . . . . . . . . . . . . Searches Triggered 1 | . . . . . . . . . . . . . . . . . . . 1 . . . . . . . . Data Miner Redirects 1 | . . . . . . . . . . . . . . . . . . . . . . . . . . . 1 Construction Impeded 1 | . . . . . . . . . . . . . . . . . . . . . . . . . . 1 . Haulers Reinforced . | . . . . . . . . . . . . . . . . . . . . . . . . . . . . Active Scanning Responses . | . . . . . . . . . . . . . . . . . . . . . . . . . . . . Cargo Convoy Interrupts . | . . . . . . . . . . . . . . . . . . . . . . . . . . . . Stealth | -11 -10 -10 -9 -9 -9 -8 -8 -8 -7 -7 -7 -7 -6 -6 -6 -6 -6 -5 -5 -5 -5 -5 -5 -4 -4 -4 -4 --------- Run | Yrd Mat Min Mat Min Exi Min Mat Sto Fac Low Low Dat Pro Fac Low Low Zio Pro Fac Ext Cet Arc Hub Fac Was Fac Arm Distress Signals 17 | . 2 . 2 . . . 1 2 1 . . . . . . . . . . 3 1 . . . . 5 . Communications Jammed . | . . . . . . . . . . . . . . . . . . . . . . . . . . . . Distress Signals . | . . . . . . . . . . . . . . . . . . . . . . . . . . . . Times Spotted 288 | . 25 2 34 3 . 4 14 12 10 3 . . . 4 3 3 . 3 7 27 5 38 10 7 6 50 18 Peak Tracking Total 10 | . 3 3 4 2 . 4 2 3 5 3 . . . 2 3 3 . 5 2 6 5 2 9 6 6 10 9 Tactical Retreats 22 | . 1 . 2 . . . . 1 3 1 . . . . 1 . . 1 . 4 . . . 1 . 6 1 Traps | -11 -10 -10 -9 -9 -9 -8 -8 -8 -7 -7 -7 -7 -6 -6 -6 -6 -6 -5 -5 -5 -5 -5 -5 -4 -4 -4 -4 ------- Run | Yrd Mat Min Mat Min Exi Min Mat Sto Fac Low Low Dat Pro Fac Low Low Zio Pro Fac Ext Cet Arc Hub Fac Was Fac Arm Traps Triggered 15 | . 1 . . . . . 1 1 2 . . . . . . . . . . 5 . . . 4 . 1 . Indirectly . | . . . . . . . . . . . . . . . . . . . . . . . . . . . . Trap Hack Attempts . | . . . . . . . . . . . . . . . . . . . . . . . . . . . . Triggered . | . . . . . . . . . . . . . . . . . . . . . . . . . . . . Disarmed . | . . . . . . . . . . . . . . . . . . . . . . . . . . . . Reprogrammed . | . . . . . . . . . . . . . . . . . . . . . . . . . . . . Reused . | . . . . . . . . . . . . . . . . . . . . . . . . . . . . Traps Extracted . | . . . . . . . . . . . . . . . . . . . . . . . . . . . . Installed . | . . . . . . . . . . . . . . . . . . . . . . . . . . . . Triggered . | . . . . . . . . . . . . . . . . . . . . . . . . . . . . Machines | -11 -10 -10 -9 -9 -9 -8 -8 -8 -7 -7 -7 -7 -6 -6 -6 -6 -6 -5 -5 -5 -5 -5 -5 -4 -4 -4 -4 ---------- Run | Yrd Mat Min Mat Min Exi Min Mat Sto Fac Low Low Dat Pro Fac Low Low Zio Pro Fac Ext Cet Arc Hub Fac Was Fac Arm Machines Disabled 39 | . 6 . 2 . . . 1 2 1 . . . . . . . . 1 . 3 . 3 2 1 . 17 . Max in Single Turn 4 | . 4 . 1 . . . 1 1 1 . . . . . . . . 1 . . . 1 1 1 . 3 . Garrison Access 4 | . . . . . . . . . . . . . . 2 . . . . 1 . . . . . . 1 . Network Hub 2 | . . . . . . . . . . . . . . . . . . . . . . . 2 . . . . Energy Cycler 2 | . . . . . . . . . . . . . . . . . . . . 2 . . . . . . . Machines Repaired . | . . . . . . . . . . . . . . . . . . . . . . . . . . . . Machines Dismantled . | . . . . . . . . . . . . . . . . . . . . . . . . . . . . Machines Sabotaged 1 | . . . . . . . . . . . . . . . . . . . . . . . 1 . . . . Overloaded Fab Kills . | . . . . . . . . . . . . . . . . . . . . . . . . . . . . Hacking | -11 -10 -10 -9 -9 -9 -8 -8 -8 -7 -7 -7 -7 -6 -6 -6 -6 -6 -5 -5 -5 -5 -5 -5 -4 -4 -4 -4 --------- Run | Yrd Mat Min Mat Min Exi Min Mat Sto Fac Low Low Dat Pro Fac Low Low Zio Pro Fac Ext Cet Arc Hub Fac Was Fac Arm Machines Accessed 98 | . 8 . 17 1 1 . 4 12 14 . 1 4 . 11 . 1 . 1 7 2 3 . 3 . . 5 3 Terminals 54 | . 6 . 11 . . . 3 9 4 . . . . 5 . . . . 3 2 3 . 3 . . 3 2 Fabricators 9 | . . . . . . . . . 3 . . . . 3 . . . . 2 . . . . . . . 1 Repair Stations 9 | . 1 . 2 . . . 1 1 2 . . . . 1 . . . . 1 . . . . . . . . Recycling Units 8 | . 1 . 2 . . . . 2 3 . . . . . . . . . . . . . . . . . . Scanalyzers 5 | . . . 2 . . . . . 2 . . . . . . . . . . . . . . . . 1 . Garrison Access 4 | . . . . . . . . . . . . . . 2 . . . . 1 . . . . . . 1 . Total Hacks 286 | . 23 . 51 1 1 . 13 31 31 . 1 33 . 25 . 1 . 1 15 8 5 . 6 . . 22 18 Successful 174 | . 11 . 22 1 1 . 5 13 17 . 1 33 . 21 . 1 . 1 10 4 5 . 5 . . 14 9 Failed 110 | . 11 . 28 . . . 8 18 14 . . . . 4 . . . . 5 4 . . 1 . . 8 9 Catastrophic 19 | . . . 3 . . . 2 3 4 . . . . . . . . . 1 2 . . . . . 1 3 Database Lockouts 2 | . 1 . 1 . . . . . . . . . . . . . . . . . . . . . . . . Manual 123 | . 20 . 24 . 1 . 8 12 12 . . . . 16 . . . . 6 6 1 . 3 . . 6 8 Terminals 155 | . 20 . 32 . . . 9 25 8 . . . . 10 . . . . 7 8 5 . 6 . . 15 10 Fabricators 35 | . . . . . . . . . 11 . . . . 11 . . . . 5 . . . . . . . 8 Repair Stations 22 | . 2 . 6 . . . 4 2 4 . . . . 2 . . . . 2 . . . . . . . . Recycling Units 14 | . 1 . 5 . . . . 4 4 . . . . . . . . . . . . . . . . . . Scanalyzers 18 | . . . 8 . . . . . 4 . . . . . . . . . . . . . . . . 6 . Garrison Access 4 | . . . . . . . . . . . . . . 2 . . . . 1 . . . . . . 1 . Terminal Hacks 84 | . 4 . 6 1 1 . 2 8 . . 1 33 . 4 . 1 . 1 2 3 5 . 3 . . 7 2 Record 16 | . . . . . . . . . . . . 11 . . . . . 1 . . 4 . . . . . . Part Schematic 17 | . 1 . . . . . . . . . . 13 . 1 . . . . . 1 . . . . . 1 . Robot Schematic 6 | . . . . . . . . . . . . 6 . . . . . . . . . . . . . . . Robot Analysis 9 | . . . 3 . . . 1 2 . . . . . . . . . . . 1 . . 1 . . 1 . Prototype ID Bank 5 | . . . 1 . . . . 1 . . . 3 . . . . . . . . . . . . . . . Open Door 7 | . . . . 1 . . . 3 . . 1 . . . . 1 . . . . 1 . . . . . . Level Access Points 1 | . . . . . . . . . . . . . . . . . . . . . . . 1 . . . . Branch Access Points 6 | . . . 1 . . . 1 . . . . . . 1 . . . . 1 . . . . . . 1 1 Machine Index 1 | . . . . . . . . . . . . . . . . . . . . . . . . . . . 1 Terminal Index 5 | . 1 . 1 . . . . 1 . . . . . . . . . . 1 . . . 1 . . . . Fabricator Index 1 | . . . . . . . . . . . . . . . . . . . . . . . . . . 1 . Garrison Index 2 | . . . . . . . . . . . . . . 1 . . . . . . . . . . . 1 . Unreport Threat 3 | . 1 . . . . . . 1 . . . . . . . . . . . . . . . . . 1 . Locate Traps 3 | . 1 . . . . . . . . . . . . . . . . . . 1 . . . . . 1 . Recall Investigation 1 | . . . . . . . . . . . . . . 1 . . . . . . . . . . . . . Derelict Proto ID Bank 1 | . . . . . 1 . . . . . . . . . . . . . . . . . . . . . . Fabricator Hacks 17 | . . . . . . . . . 4 . . . . 4 . . . . 3 . . . . . . . 6 Network Status 4 | . . . . . . . . . 1 . . . . 1 . . . . 1 . . . . . . . 1 Load Schematic 8 | . . . . . . . . . 2 . . . . 2 . . . . 1 . . . . . . . 3 Build 5 | . . . . . . . . . 1 . . . . 1 . . . . 1 . . . . . . . 2 Repair Station Hacks 14 | . 2 . 3 . . . 2 1 3 . . . . 2 . . . . 1 . . . . . . . . Scan Component 9 | . 1 . 2 . . . 1 1 2 . . . . 1 . . . . 1 . . . . . . . . Repair 5 | . 1 . 1 . . . 1 . 1 . . . . 1 . . . . . . . . . . . . . Recycling Unit Hacks 5 | . . . 1 . . . . 2 2 . . . . . . . . . . . . . . . . . . Retrieve Components 5 | . . . 1 . . . . 2 2 . . . . . . . . . . . . . . . . . . Scanalyzer 16 | . . . 7 . . . . . 3 . . . . . . . . . . . . . . . . 6 . Insert Component 9 | . . . 4 . . . . . 2 . . . . . . . . . . . . . . . . 3 . Analyze 7 | . . . 3 . . . . . 1 . . . . . . . . . . . . . . . . 3 . Garrison Access Hacks 4 | . . . . . . . . . . . . . . 2 . . . . 1 . . . . . . 1 . Seal Access 4 | . . . . . . . . . . . . . . 2 . . . . 1 . . . . . . 1 . Unauthorized Hacks 34 | . 5 . 5 . . . 1 2 5 . . . . 9 . . . . 3 1 . . 2 . . . 1 Terminals 24 | . 5 . 5 . . . 1 2 3 . . . . 3 . . . . 2 1 . . 2 . . . . Assimilate 8 | . 1 . 2 . . . 1 . 1 . . . . 1 . . . . 2 . . . . . . . . Botnet 8 | . 2 . 1 . . . . 1 1 . . . . 2 . . . . . 1 . . . . . . . Disrupt 2 | . 1 . 1 . . . . . . . . . . . . . . . . . . . . . . . . Operators 4 | . 1 . 1 . . . . 1 1 . . . . . . . . . . . . . . . . . . Sabotage 2 | . . . . . . . . . . . . . . . . . . . . . . . 2 . . . . Fabricators 10 | . . . . . . . . . 2 . . . . 6 . . . . 1 . . . . . . . 1 Prioritize 3 | . . . . . . . . . . . . . . 1 . . . . 1 . . . . . . . 1 Fabnet 4 | . . . . . . . . . 1 . . . . 3 . . . . . . . . . . . . . Recompile 3 | . . . . . . . . . 1 . . . . 2 . . . . . . . . . . . . . Repair Stations . | . . . . . . . . . . . . . . . . . . . . . . . . . . . . Recycling Units . | . . . . . . . . . . . . . . . . . . . . . . . . . . . . Scanalyzers . | . . . . . . . . . . . . . . . . . . . . . . . . . . . . Garrison Access . | . . . . . . . . . . . . . . . . . . . . . . . . . . . . Data Cores Recovered 2 | . . . 1 . . . . . 1 . . . . . . . . . . . . . . . . . . Used . | . . . . . . . . . . . . . . . . . . . . . . . . . . . . Hacking Detections 74 | . 7 . 15 . . . 3 12 12 . . . . 7 . . . . 6 2 2 . 2 . . 3 3 Full Trace Events 8 | . . . 1 . . . . 2 2 . . . . . . . . . 1 . . . . . . . 2 Feedback Events 2 | . . . . . . . . . 1 . . . . . . . . . . . . . . . . . 1 Corruption 2 | . . . . . . . . . 1 . . . . . . . . . . . . . . . . . 1 Feedback Blocked . | . . . . . . . . . . . . . . . . . . . . . . . . . . . . Robot Schematics Acquired 9 | . . . . . . . . . . . . 6 . . . . 3 . . . . . . . . . . Robots Built . | . . . . . . . . . . . . . . . . . . . . . . . . . . . . Authchips . | . . . . . . . . . . . . . . . . . . . . . . . . . . . . Time . | . . . . . . . . . . . . . . . . . . . . . . . . . . . . Total Robot Build Rating . | . . . . . . . . . . . . . . . . . . . . . . . . . . . . Part Schematics Acquired 39 | . 1 . 3 . . . . . 1 . . 13 . 1 . . 15 . . 1 . . . . . 4 . Parts Built 8 | . . . . . . . . . 1 . . . . 1 . . . . 2 . . . . . . . 4 Authchips 1 | . . . . . . . . . . . . . . . . . . . . . . . . . . . 1 Time 235 | . . . . . . . . . 47 . . . . 76 . . . . 25 . . . . . . . 87 Total Part Build Rating 40 | . . . . . . . . . 5 . . . . 5 . . . . 2 . . . . . . . 28 Parts Repaired 5 | . 1 . 1 . . . 1 . 1 . . . . 1 . . . . . . . . . . . . . Time 179 | . 26 . 51 . . . 32 . 38 . . . . 32 . . . . . . . . . . . . . Parts Recycled . | . . . . . . . . . . . . . . . . . . . . . . . . . . . . Recycled Matter . | . . . . . . . . . . . . . . . . . . . . . . . . . . . . Retrieved Matter . | . . . . . . . . . . . . . . . . . . . . . . . . . . . . Retrieved Components 14 | . . . 3 . . . . 7 4 . . . . . . . . . . . . . . . . . . Parts Scanalyzed 8 | . . . 3 . . . . . 2 . . . . . . . . . . . . . . . . 3 . Part Schematics Acquired 7 | . . . 3 . . . . . 1 . . . . . . . . . . . . . . . . 3 . Parts Damaged . | . . . . . . . . . . . . . . . . . . . . . . . . . . . . Bothacking | -11 -10 -10 -9 -9 -9 -8 -8 -8 -7 -7 -7 -7 -6 -6 -6 -6 -6 -5 -5 -5 -5 -5 -5 -4 -4 -4 -4 ------------ Run | Yrd Mat Min Mat Min Exi Min Mat Sto Fac Low Low Dat Pro Fac Low Low Zio Pro Fac Ext Cet Arc Hub Fac Was Fac Arm Used RIF Installer . | . . . . . . . . . . . . . . . . . . . . . . . . . . . . Robots Hacked 3 | . . . . . . . . . . . . . . 1 . . . . . 1 . . . . . 1 . Non-combat . | . . . . . . . . . . . . . . . . . . . . . . . . . . . . Combat 3 | . . . . . . . . . . . . . . 1 . . . . . 1 . . . . . 1 . Robot Hacks Applied . | . . . . . . . . . . . . . . . . . . . . . . . . . . . . Relay Couplers Released . | . . . . . . . . . . . . . . . . . . . . . . . . . . . . Fabnet Peak Effective % 4 | . . . . . . . . . . . . . 3 3 3 3 3 4 4 4 4 4 4 1 1 1 1 Autooverrided 3 | . . . . . . . . . . . . . . 1 . . . . . 1 . . . . . 1 . Robots Rewired 19 | . . . . . . . . . . . . . . 1 . . . . . 16 . . . . . . 2 Allies Hacked . | . . . . . . . . . . . . . . . . . . . . . . . . . . . . Hacks Repelled . | . . . . . . . . . . . . . . . . . . . . . . . . . . . . Allies | -11 -10 -10 -9 -9 -9 -8 -8 -8 -7 -7 -7 -7 -6 -6 -6 -6 -6 -5 -5 -5 -5 -5 -5 -4 -4 -4 -4 -------- Run | Yrd Mat Min Mat Min Exi Min Mat Sto Fac Low Low Dat Pro Fac Low Low Zio Pro Fac Ext Cet Arc Hub Fac Was Fac Arm Total Allies 58 | . 1 5 1 . . . . . . . . . . 3 . . 6 . 1 31 5 . . . . 3 2 Largest Group 18 | . 1 6 4 1 . . . . . . . . . 2 1 1 6 6 1 15 18 18 13 3 . 2 2 Highest-Rated Group 979 | . 10 107 50 10 . . . . . . . . . 41 10 10 160 160 10 539 979 979 725 161 . 192 103 Highest-Rated Ally 159 | . 10 31 16 10 . . . . . . . . . 41 10 10 31 31 10 159 159 159 96 91 . 96 56 Total Orders 13 | . 2 . 2 . . . . 2 . . . . . . . . 2 . . . 3 2 . . . . . STAY 4 | . 1 . 1 . . . . . . . . . . . . . . . . . 1 1 . . . . . FOLLOW 5 | . 1 . 1 . . . . . . . . . . . . . . . . . 2 1 . . . . . EXPLORE 2 | . . . . . . . . 1 . . . . . . . . 1 . . . . . . . . . . RETURN 2 | . . . . . . . . 1 . . . . . . . . 1 . . . . . . . . . . Ally Attacks 310 | . . 5 42 . . . . . . . . . . 3 . . . 14 . 113 11 29 34 . . 51 8 Total Damage 10858 | . . 75 468 . . . . . . . . . . 38 . . . 199 . 3365 214 762 2270 . . 3256 211 Kills 75 | . . 3 8 . . . . . . . . . . . . . . 3 . 24 1 4 11 . . 19 2 Allies Corrupted 1 | . . . . . . . . . . . . . . . . . . . . . . . 1 . . . . Allies Melted . | . . . . . . . . . . . . . . . . . . . . . . . . . . . . Intel | -11 -10 -10 -9 -9 -9 -8 -8 -8 -7 -7 -7 -7 -6 -6 -6 -6 -6 -5 -5 -5 -5 -5 -5 -4 -4 -4 -4 ------- Run | Yrd Mat Min Mat Min Exi Min Mat Sto Fac Low Low Dat Pro Fac Low Low Zio Pro Fac Ext Cet Arc Hub Fac Was Fac Arm Robot Analysis Total 9 | . . . 3 . . . 1 2 . . . . . . . . . . . 1 . . 1 . . 1 . Derelict Logs Recovered 12 | . . 2 . . . . . . . 1 1 . 2 . . 2 1 3 . . . . . . . . . Drone Launches 3 | . . . . . . . . 2 . . . . . . . . 1 . . . . . . . . . . Drone Recoveries 3 | . . . . . . . . 2 . . . . . . . . 1 . . . . . . . . . . Exploration | -11 -10 -10 -9 -9 -9 -8 -8 -8 -7 -7 -7 -7 -6 -6 -6 -6 -6 -5 -5 -5 -5 -5 -5 -4 -4 -4 -4 ------------- Run | Yrd Mat Min Mat Min Exi Min Mat Sto Fac Low Low Dat Pro Fac Low Low Zio Pro Fac Ext Cet Arc Hub Fac Was Fac Arm Turns Passed 18005 | 151 1605 796 2427 523 465 238 1147 685 1348 378 505 37 436 632 326 497 597 400 660 1304 317 564 112 275 62 903 615 Spaces Moved 16549 | 98 838 519 1362 339 319 149 651 368 1455 616 1124 88 992 1112 724 839 982 515 712 744 167 337 126 149 108 630 486 Core 658 | 3 . . . . . . . . . . . . . . . . . . . . . . . 67 108 276 204 Treads 245 | . . . . . . . . . . . . . . . . . . . . . . . . . . 245 . Legs 1267 | . . . . . . . . . . . . . . . . . . . . 642 167 115 . 3 . 109 231 Wheels 4640 | 95 838 519 1362 339 319 149 651 368 . . . . . . . . . . . . . . . . . . . Hover 9739 | . . . . . . . . . 1455 616 1124 88 992 1112 724 839 982 515 712 102 . 222 126 79 . . 51 Flight . | . . . . . . . . . . . . . . . . . . . . . . . . . . . . Fastest Speed 36 | 50 80 140 130 145 145 145 102 102 42 42 42 42 42 42 38 38 38 40 40 112 120 36 40 50 50 50 50 Average Speed 78 | 79 132 140 141 145 145 145 115 114 44 42 42 42 42 42 38 38 39 40 60 120 120 79 45 131 50 106 97 Slowest Speed 310 | 80 140 140 155 145 145 145 120 120 104 42 42 42 42 102 42 38 40 40 240 310 120 207 176 240 50 215 130 Overloaded Moves . | . . . . . . . . . . . . . . . . . . . . . . . . . . . . Propulsion Burnouts . | . . . . . . . . . . . . . . . . . . . . . . . . . . . . Robots Hopped 1 | . . . 1 . . . . . . . . . . . . . . . . . . . . . . . . Cave-ins Triggered . | . . . . . . . . . . . . . . . . . . . . . . . . . . . . Exploration Rate (%) 56 | 5 96 94 86 59 65 12 40 51 28 74 97 74 89 29 72 63 88 64 20 75 70 86 18 4 86 22 24 Regions Visited 27 Branch Regions 18 Pre-discovered Areas 6 | . . 1 . . . . . . . 1 . 1 . . . . 2 1 . . . . . . . . . Known Exits Taken 19 | . . . 1 . . . 1 1 1 1 1 1 1 1 1 1 1 1 1 1 1 1 1 . . 1 . Unknown Exits Taken 6 | 1 1 1 . 1 1 1 . . . . . . . . . . . . . . . . . . . . . Scrap Searched 26 | . . 2 . 1 . . . . . 6 5 . 4 . 2 2 2 2 . . . . . . . . . Spaces Dug 52 | . 7 . 2 . . . 5 9 13 . 2 . 3 . 1 . . 2 8 . . . . . . . . Terrain Destroyed 339 | . 40 13 30 . . . 8 17 17 . 2 . 3 . 23 14 . 4 17 40 . 5 . 1 . 105 . Melee 4 | . . . 2 . . . . . . . 1 . . . . . . . 1 . . . . . . . . Projectile 83 | . . . . . . . 8 17 17 . 1 . 3 . 1 . . 4 16 1 . 5 . 1 . 9 . AOE 252 | . 40 13 28 . . . . . . . . . . . 22 14 . . . 39 . . . . . 96 . Terrain Rammed . | . . . . . . . . . . . . . . . . . . . . . . . . . . . . Walls Destroyed . | . . . . . . . . . . . . . . . . . . . . . . . . . . . . Machines Disabled . | . . . . . . . . . . . . . . . . . . . . . . . . . . . . Actions | -11 -10 -10 -9 -9 -9 -8 -8 -8 -7 -7 -7 -7 -6 -6 -6 -6 -6 -5 -5 -5 -5 -5 -5 -4 -4 -4 -4 --------- Run | Yrd Mat Min Mat Min Exi Min Mat Sto Fac Low Low Dat Pro Fac Low Low Zio Pro Fac Ext Cet Arc Hub Fac Was Fac Arm Total 20896 | 138 1230 574 1780 373 322 158 983 574 2071 728 1147 87 1005 1278 764 1005 1192 699 879 1128 278 562 178 209 114 814 626 Wait 2993 | 5 250 37 232 26 . 2 238 121 473 108 9 . 2 121 24 145 201 173 106 246 105 117 49 18 5 62 118 Move 16521 | 97 837 518 1359 338 318 148 650 367 1454 615 1123 87 991 1111 723 838 981 514 711 743 166 336 125 149 107 629 486 Hop 1 | . . . 1 . . . . . . . . . . . . . . . . . . . . . . . . Pick Up 177 | 10 35 4 35 4 1 . 12 7 9 . 2 . 1 12 2 7 2 . 5 6 . 5 . . . 17 1 Fast Attach 75 | 7 3 . 3 . 1 . 3 3 2 . . . . 1 1 . . 1 2 10 1 5 . 6 2 16 8 Attach 48 | . 1 . 4 . . . 1 . 8 1 . . . 3 3 1 . . 5 3 . 2 1 4 . 9 2 Detach 23 | . . . . . . . 1 . 3 . . . . 2 1 . . . . 2 . 2 . 3 . 7 2 Swap 172 | . 14 3 50 . . 2 16 18 18 1 2 . 2 6 5 2 3 3 4 8 . 11 1 . . 3 . Drop 206 | 2 25 4 43 4 2 . 15 10 19 . 2 . 2 14 2 4 3 1 2 11 1 12 . 7 . 19 2 Fire 497 | 17 65 8 50 1 . 6 46 48 51 . 7 . 7 . 3 2 . 6 24 28 5 72 . 21 . 30 . Melee 62 | . . . 3 . . . . . 21 3 1 . . 3 . 6 2 1 20 . . . 2 . . . . Ram 11 | . . . . . . . 1 . . . . . . . . . . . . . . . . . . 7 3 Kick . | . . . . . . . . . . . . . . . . . . . . . . . . . . . . Crush . | . . . . . . . . . . . . . . . . . . . . . . . . . . . . Escape Stasis 15 | . . . . . . . . . 13 . . . . . . . . . . . . . . . . 2 . Rewire 95 | . . . . . . . . . . . 1 . . 5 . . . . . 71 . . . 1 . 13 4 Trap . | . . . . . . . . . . . . . . . . . . . . . . . . . . . . Miscellaneous . | . . . . . . . . . . . . . . . . . . . . . . . . . . . . Route ------- -11/Scrapyard -10/Materials (discovered 4 exits: *Mat x3 / [*Min]) -10/Mines (discovered 2 exits: *Mat x2) -9/Materials (discovered 3 exits: *Mat x2 / *Min) -9/Mines (discovered 3 exits: *Mat x2 / *Exi) -9/Exiles -8/Mines -8/Materials (discovered 3 exits: *Fac / *Sto x2) -8/Storage -7/Factory (discovered 2 exits: *Fac / *Low) -7/Lower Caves -7/Lower Caves (discovered 2 exits: *Fac / *Dat) -7/Data Miner -6/Proximity Caves -6/Factory (discovered 4 exits: *Fac x2 / *Low x2) -6/Lower Caves -6/Lower Caves (discovered 2 exits: *Fac / *Zio) -6/Zion (discovered 2 exits: [Dee] / *Pro) -5/Proximity Caves -5/Factory (discovered 6 exits: *Fac x2 / Upp x2 / *Ext x2) -5/Extension (discovered 2 exits: *Fac / *Cet) -5/Cetus -5/Archives (discovered 2 exits: *Hub x2) -5/Hub_04(d) (discovered 4 exits: *Fac x4) -4/Factory -4/Waste -4/Factory (discovered 3 exits: Upp x2 / *Arm) -4/Armory History --------- Turn | Location | Event 14 | -11/Scrapyard | Discovered new exit (range 15) 152 | -11/Scrapyard | Entered Materials 316 | -10/Materials | Build established: Mutant 865 | -10/Materials | Discovered new exit (range 9) 1207 | -10/Materials | Core integrity fell below 50% 1208 | -10/Materials | Discovered new exit (range 9) 1210 | -10/Materials | Central database locked down 1267 | -10/Materials | Repaired Grenade Launcher 1313 | -10/Materials | Build established: Scavenger-Mutant 1440 | -10/Materials | Discovered new exit (range 7) 1662 | -10/Materials | Discovered new exit (range 12) 1757 | -10/Materials | Entered Mines 1757 | -10/Mines | Accompanied by 1 ally 1760 | -10/Mines | Assisted by bots powering up and referring to "LRC-V3" 1771 | -10/Mines | Learned Materials emergency access door positions 2069 | -10/Mines | Found a hidden stash of uninstalled traps 2096 | -10/Mines | Discovered new exit (range 9) 2160 | -10/Mines | Found a damaged Exp. Sensor Array with a note attached 2163 | -10/Mines | Found Prototype Device 2163 | -10/Mines | Identified Exp. Sensor Array 2387 | -10/Mines | Learned Materials trap positions 2446 | -10/Mines | Learned location of Storage (-8) 2447 | -10/Mines | Discovered new exit (range 11) 2553 | -10/Mines | Entered Materials 2553 | -9/Materials | Accompanied by 4 allies 2553 | -9/Materials | Evolved 2 slots: Utility x2 2554 | -9/Materials | Loaded intel: 22 trap records 3057 | -9/Materials | Repaired Cld. Ion Engine 3296 | -9/Materials | Lost 3 allies 3358 | -9/Materials | Discovered new exit (range 10) 3445 | -9/Materials | Discovered new exit (range 10) 3498 | -9/Materials | Build established: Mutant 3537 | -9/Materials | Central database locked down 3793 | -9/Materials | Discovered new exit (range 16) 4148 | -9/Materials | Identified exit to Mines 4980 | -9/Materials | Entered Mines 4980 | -9/Mines | Accompanied by 1 ally 5247 | -9/Mines | Discovered new exit (range 5) 5308 | -9/Mines | Discovered new exit (range 8) 5331 | -9/Mines | Met a Derelict shopkeep closing up shop 5453 | -9/Mines | Assembled infested the area 5488 | -9/Mines | Discovered new exit (range 11) 5503 | -9/Mines | Entered Exiles 5538 | -9/Exiles | Met 8R-AWN 5563 | -9/Exiles | Met EX-HEX 5611 | -9/Exiles | Met EX-BIN 5631 | -9/Exiles | Aligned with FarCom system 5633 | -9/Exiles | Given EX-Vault access code 5672 | -9/Exiles | Opened EX-Vault 5682 | -9/Exiles | Found Modified TNC 5687 | -9/Exiles | Found Skeleton Box 5716 | -9/Exiles | Warned to stay clear of 0b10 Research branches 5762 | -9/Exiles | Met EX-DEC 5956 | -9/Exiles | Discovered new exit (range 10) 5968 | -9/Exiles | Stole two prototypes: Modified TNC, Skeleton Box 5968 | -9/Exiles | Entered Mines 6063 | -8/Mines | Discovered new exit (range 7) 6206 | -8/Mines | Entered Materials 6206 | -8/Materials | Evolved 2 slots: Propulsion x2 6303 | -8/Materials | Build established: Skirmisher 6859 | -8/Materials | Discovered new exit (range 16) 6903 | -8/Materials | Repaired Rocket Launcher 6912 | -8/Materials | Build established: Scavenger-Skirmisher 7250 | -8/Materials | Identified exit to Storage 7353 | -8/Materials | Entered Storage 7948 | -8/Storage | Discovered new exit (range 16) 8037 | -8/Storage | Identified exit to Factory 8038 | -8/Storage | Entered Factory 8038 | -7/Factory | Evolved 2 slots: Propulsion x1, Utility x1 8040 | -7/Factory | FarCom data flow suspended 8336 | -7/Factory | Build established: Scout 8441 | -7/Factory | Repaired Imp. Terrain Scanner 8534 | -7/Factory | Fabricated Imp. Hacking Suite? 9208 | -7/Factory | Discovered new exit (range 6) 9211 | -7/Factory | Identified exit to Lower Caves 9274 | -7/Factory | Discovered new exit (range 16) 9375 | -7/Factory | Identified exit to Factory 9386 | -7/Factory | Entered Lower Caves 9398 | -7/Lower Caves | Learned location of Zion (-6) 9605 | -7/Lower Caves | Encountered a Warlord checkpoint 9608 | -7/Lower Caves | Spotted B-75 Beast 9738 | -7/Lower Caves | Discovered new exit (range 4) 9740 | -7/Lower Caves | Identified exit to Lower Caves 9764 | -7/Lower Caves | Entered another Lower Caves area 9780 | -7/Lower Caves | Discovered exit to Factory (range 15) 9824 | -7/Lower Caves | Identified exit to Data Miner 9869 | -7/Lower Caves | Encountered a Warlord checkpoint 10269 | -7/Lower Caves | Entered Data Miner 10269 | -7/Data Miner | Discovered new exit (range 7) 10277 | -7/Data Miner | Met Data Miner 10290 | -7/Data Miner | Learned location of Section 7 (-2) 10290 | -7/Data Miner | Acquired the access code to Warlord's prototype stash 10296 | -7/Data Miner | Received God Mode back door access code from Data Miner 10306 | -7/Data Miner | Identified exit to Proximity Caves 10306 | -7/Data Miner | Entered Proximity Caves 10323 | -6/Proximity Caves | Learned Factory terminal intel 10419 | -6/Proximity Caves | Learned location of 1 exit from Factory 10594 | -6/Proximity Caves | Discovered exit to Factory (range 16) 10742 | -6/Proximity Caves | Entered Factory 10742 | -6/Factory | Evolved 2 slots: Utility x2 10743 | -6/Factory | Identified exit to Factory 10744 | -6/Factory | Loaded intel: 26 terminal locations 10972 | -6/Factory | Identified exit to Lower Caves 10977 | -6/Factory | Discovered exit to Factory (range 16) 11032 | -6/Factory | Build established: Hacker-Scout 11118 | -6/Factory | Repaired Imp. Hover Unit 11200 | -6/Factory | Fabricated Com. Ion Cannon (x1) 11206 | -6/Factory | Local machine network offline 11275 | -6/Factory | Found Prototype Processor 11275 | -6/Factory | Identified Exp. Targeting Computer 11278 | -6/Factory | Found Exp. Targeting Computer 11374 | -6/Factory | Entered Lower Caves 11374 | -6/Lower Caves | Accompanied by 1 ally 11425 | -6/Lower Caves | Encountered a Warlord checkpoint 11448 | -6/Lower Caves | Found Alien Artifact 11448 | -6/Lower Caves | Identified Core Expander 11448 | -6/Lower Caves | Installed Core Expander, added new Propulsion slot 11567 | -6/Lower Caves | Discovered new exit (range 5) 11568 | -6/Lower Caves | Identified exit to Lower Caves 11700 | -6/Lower Caves | Entered another Lower Caves area 11700 | -6/Lower Caves | Accompanied by 1 ally 11704 | -6/Lower Caves | Discovered exit to Factory (range 9) 11748 | -6/Lower Caves | Encountered a Warlord checkpoint 11749 | -6/Lower Caves | Learned Factory terminal intel 11753 | -6/Lower Caves | Learned Factory security intel 11831 | -6/Lower Caves | Discovered new exit (range 15) 11832 | -6/Lower Caves | Spotted LC-3OQ(f) 11833 | -6/Lower Caves | Spotted 7X-O0H(f) 11834 | -6/Lower Caves | Encountered a Master Thief 11834 | -6/Lower Caves | Encountered a Master Thief 11843 | -6/Lower Caves | Exp. Sensor Array stolen by Master Thief 11859 | -6/Lower Caves | Destroyed LC-3OQ(f) 12088 | -6/Lower Caves | Identified exit to Zion 12132 | -6/Lower Caves | Build established: Hacker-Mutant 12197 | -6/Lower Caves | Entered Zion 12207 | -6/Zion | Given A8's code to call for help 12219 | -6/Zion | Discovered new exit (range 9) 12320 | -6/Zion | Gained Derelict followers 12363 | -6/Zion | Learned 4 Factory zone layouts 12370 | -6/Zion | Gained Derelict followers 12385 | -6/Zion | Learned location of Warlord (-5) 12419 | -6/Zion | Learned location of Quarantine (-3) 12421 | -6/Zion | Given the Hacking Drone Bay 12422 | -6/Zion | Found Prototype Device 12426 | -6/Zion | Identified Hacking Drone Bay 12558 | -6/Zion | Discovered new exit (range 13) 12647 | -6/Zion | Identified exit to Proximity Caves 12794 | -6/Zion | Entered Proximity Caves 12794 | -5/Proximity Caves | Accompanied by 6 allies 12809 | -5/Proximity Caves | Spotted B-75 Beast 12878 | -5/Proximity Caves | Spotter reported a threat 12882 | -5/Proximity Caves | Found Alien Artifact 12882 | -5/Proximity Caves | Identified Dimensional Node Initializer 12882 | -5/Proximity Caves | Initialized slip node 12887 | -5/Proximity Caves | Spotter reported a threat 12899 | -5/Proximity Caves | Learned Factory interactive machine intel 12992 | -5/Proximity Caves | Spotter reported a threat 13179 | -5/Proximity Caves | Discovered exit to Factory (range 8) 13194 | -5/Proximity Caves | Entered Factory 13194 | -5/Factory | Evolved 2 slots: Utility x2 13195 | -5/Factory | Identified exit to Upper Caves 13196 | -5/Factory | Identified exit to Factory 13198 | -5/Factory | Loaded intel: 53 interactive machine locations 13199 | -5/Factory | Loaded intel: 27 terminal locations 13247 | -5/Factory | Fabricated Sensor Array (x2) 13444 | -5/Factory | Identified exit to Extension 13494 | -5/Factory | Search patrols dispatched 13551 | -5/Factory | Build established: Hacker-Scout 13625 | -5/Factory | Lost 10 parts (1p6n3u) 13684 | -5/Factory | Discovered exit to Factory (range 13) 13854 | -5/Factory | Entered Extension 13911 | -5/Extension | Build established: Hacker-Mutant 13924 | -5/Extension | Rescued a captive Derelict 13924 | -5/Extension | Rescued a captive Derelict 14042 | -5/Extension | Lost 3 allies 14084 | -5/Extension | Rescued a captive Derelict 14180 | -5/Extension | Rescued a captive Derelict 14466 | -5/Extension | Rescued a captive Derelict 14509 | -5/Extension | Build established: Commander-Mutant 14589 | -5/Extension | Spotted B-75 Beast 14603 | -5/Extension | Rescued A7 14616 | -5/Extension | Lost 7 allies 14689 | -5/Extension | Rewired B-75 Beast 14695 | -5/Extension | Spotted B-75 Beast 14718 | -5/Extension | Allies destroyed B-75 Beast 14798 | -5/Extension | Rescued a captive Derelict 14801 | -5/Extension | Rescued a captive Derelict 14841 | -5/Extension | Build established: Hacker-Mutant 14843 | -5/Extension | Local machine network offline 14854 | -5/Extension | Disrupted transfer network 14907 | -5/Extension | Rescued a captive Derelict 14908 | -5/Extension | Rescued a captive Derelict 14991 | -5/Extension | Rescued a captive Derelict 14992 | -5/Extension | Rescued a captive Derelict 15002 | -5/Extension | Energy Cycler disabled 15004 | -5/Extension | Rescued a captive Derelict 15110 | -5/Extension | Discovered exit to Factory (range 10) 15111 | -5/Extension | Discovered new exit (range 6) 15127 | -5/Extension | Identified exit to Cetus 15158 | -5/Extension | Entered Cetus 15158 | -5/Cetus | Accompanied by 15 allies (A7) 15163 | -5/Cetus | Acquired a Cetus Manufacturing Module code from A7 15186 | -5/Cetus | Spotted Cetus Guard 15186 | -5/Cetus | Spotted Cetus Guard 15187 | -5/Cetus | Spotted Cetus Guard 15187 | -5/Cetus | Spotted Cetus Guard 15196 | -5/Cetus | Destroyed Cetus Guard 15199 | -5/Cetus | Allies destroyed Cetus Guard 15201 | -5/Cetus | Destroyed Cetus Guard 15203 | -5/Cetus | Destroyed Cetus Guard 15266 | -5/Cetus | Started Cetus Manufacturing Module 15275 | -5/Cetus | Escorted A7 to Cetus Mainframe 15291 | -5/Cetus | Manufactured an Enhanced Grunt 15316 | -5/Cetus | Manufactured an Enhanced Grunt 15341 | -5/Cetus | Manufactured an Enhanced Grunt 15366 | -5/Cetus | Manufactured an Enhanced Grunt 15391 | -5/Cetus | Manufactured an Enhanced Grunt 15434 | -5/Cetus | Discovered new exit (range 16) 15451 | -5/Cetus | Identified exit to Archives 15475 | -5/Cetus | Entered Archives 15475 | -5/Archives | Accompanied by 18 allies (A7) 15480 | -5/Archives | Received a hacking code to weaken MAIN.C 15544 | -5/Archives | Lost 4 allies 15558 | -5/Archives | Discovered new exit (range 16) 15603 | -5/Archives | Build established: Commander-Mutant 15613 | -5/Archives | Identified exit to Hub_04(d) 15908 | -5/Archives | Discovered exit to Hub_04(d) (range 16) 16039 | -5/Archives | Entered Hub_04(d) 16039 | -5/Hub_04(d) | Accompanied by 13 allies 16093 | -5/Hub_04(d) | Discovered exit to Factory (range 15) 16125 | -5/Hub_04(d) | Network Hub disabled 16125 | -5/Hub_04(d) | Network Hub disabled 16134 | -5/Hub_04(d) | Spotted Lightning 16135 | -5/Hub_04(d) | Spotted Lightning 16135 | -5/Hub_04(d) | Spotted Lightning 16145 | -5/Hub_04(d) | Core integrity fell below 50% 16146 | -5/Hub_04(d) | Allies destroyed Lightning 16147 | -5/Hub_04(d) | Allies destroyed Lightning 16151 | -5/Hub_04(d) | Entered Factory 16151 | -4/Factory | Accompanied by 3 allies 16151 | -4/Factory | Evolved 2 slots: Power x1, Utility x1 16173 | -4/Factory | Lost 7 allies 16180 | -4/Factory | Lost 5 parts (5n) 16233 | -4/Factory | Murdered 3 allies 16254 | -4/Factory | Build established: Wizard-Mutant 16407 | -4/Factory | Lost 3 parts (1n2u) 16426 | -4/Factory | Sucked down chute 16426 | -4/Factory | Entered Waste 16441 | -4/Waste | EMP discharged 16441 | -4/Waste | System corruption reached 10% 16449 | -4/Waste | Spotted C-40 Crusher 16463 | -4/Waste | Spotted C-40 Crusher 16470 | -4/Waste | Spotted C-40 Crusher 16471 | -4/Waste | Spotted C-40 Crusher 16474 | -4/Waste | Spotted C-40 Crusher 16474 | -4/Waste | Spotted C-40 Crusher 16484 | -4/Waste | Discovered new exit (range 10) 16488 | -4/Waste | Identified exit to Factory 16488 | -4/Waste | Entered Factory 16498 | -4/Factory | Found Quantum Capacitor 16657 | -4/Factory | Build established: Hacker-Mutant 16883 | -4/Factory | Found Launcher Loader 16965 | -4/Factory | Identified exit to Upper Caves 16965 | -4/Factory | Identified exit to Armory 16968 | -4/Factory | Enhanced Grunt warped into view, answering call for help 16973 | -4/Factory | Enhanced Grunt warped into view, answering call for help 17183 | -4/Factory | Found Prototype Device 17183 | -4/Factory | Identified Exp. Thermal Shield 17269 | -4/Factory | Lost 6 parts (1p3n1u1w) 17330 | -4/Factory | Lost 6 parts (4n2w) 17353 | -4/Factory | Spotted B-86 Titan 17381 | -4/Factory | Core integrity fell below 50% 17391 | -4/Factory | Entered Armory 17427 | -4/Armory | Fabricated Lrn. Sensor Array (x2) 17458 | -4/Armory | Fabricated Lgt. Antimatter Reactor (x2) 17940 | -4/Armory | Incoming investigation squad redirected 17972 | -4/Armory | Core integrity fell below 20% 18006 | -4/Armory | Destroyed by S-27 Virus with Autogun Last Messages --------------- 17949_ Antigrav System destroyed. 17956_ Slammed into S-27 Virus. 17956_ Destabilizing: System corrupted (+1). 17956_ Lgt. Antimatter Reactor destroyed. 17957_ Slammed into S-27 Virus. 17958_ Exp. Thermal Shield destroyed. 17958_ Antigrav System destroyed. 17961_ Acquired Unknown Hackware. 17961_ Identified Adv. System Shield. 17964_ System corrupted: Energy discharge (-55). 17965_ Flexi-carbon Leg destroyed. 17966_ Terminal disabled. 17966_ Dropped Mic. Fission Core. 17972_ Imp. Hacking Suite destroyed. 17981_ Imp. Target Analyzer destroyed. 17997_ RRZAVSKPDXMLW#ABTZ4R= XHBM%8 18001_ Connecting with Terminal... >>Access(Branch) No branch access points found. 18006_ Imp. Hacking Suite destroyed. Map ----- +----------------------------------------------------+ | ?????????????????????????????????????????????????? | | ?????????????????????????????????????????????????? | | ?????????????????????????????????????????????????? | | ?????????????????????????????????????????????????? | | ?????????????????????????????????????????????????? | | ?????????????????????????????????????????????????? | | ?????????????????????????????????????????????????# | | ?????????????????????????????????????????????????# | | ?????????????????????????????????????????????????# | | ?????????????????????????????????????????????????# | | ?????????????????????????????????????????????????# | | ?????????????????????????????????????????????????# | | ?????????????????????????????????????????????????# | | ??????????????????????##++???????????????????????# | | ??????????????????????? ???????????????????????# | | ??????????????????????? ???????????????????????# | | ??????????????????????? ???????????????????????# | | ??????????????????????##ss#???????#+#????????????# | | ??????????????????????# ??????? #????????????# | | ???????????????????????YssY??????? #????????????# | | ???????????????????????# #??????? #???########?# | | ???????????????????????#s #??????# #???# ### | | ???????????????????????# ######## ##### | | ???????????????????????# | | ???????????????????????# l | | ???????????????????????# @""" ##+####### | | ???????????????????????# """ # #?# ### | | ???????????????????????+ """ # #?### ###?? | | ???????????????????????# """ # """ #???# #???? | | ???????????????????????# """ #* T" #???# #???? | | ???????????????????????# """ # """ #???# #???? | | ???????????????????????# #! #???# #???? | | ???????????????????????# ####+####### #???? | | ???????????????????????# ##### | | ???????????????????????# + | | ???????????????????????#+################## # " | | ??????????????????????????????????????????# + " | | ??????????????????????????????????????????# ##? " | | ??????????????????????????????????????????# #?? " | | ?????????????????????????????????????????? #??? " | | ?????????????????????????????????????????####??? " | | ????????????????????????????????????????????????? | | ?????????????????????????????????????????????????# | | ?????????????????????????????????????????????????? | | ?????????????????????????????????????????????????? | | ?????????????????????????????????????????????????? | | ?????????????????????????????????????????????????? | | ?????????????????????????????????????????????????? | | ?????????????????????????????????????????????????? | | ?????????????????????????????????????????????????? | +----------------------------------------------------+ Best States ------------- Heat Dissipation 71 Energy Generation 31 Energy Capacity 340 Matter Stores 300 Matter Capacity 300 Sight Range 16 Robot Scan Range 20 Terrain Scan Range 16 Terrain Scan Density 210 Additional Mass Support 12 Armor Coverage 225 Resistance: KI 20 Resistance: TH 30 Propulsion Shielding 66 Evasion (%) 57 Targeting Accuracy 12 Target Analysis 6 Recoil Reduction 3 Offensive Hacking 61 Defensive Hacking 14 Authchip Count 3 Item Schematics ----------------- Hcp. Storage Unit | -10/Materials | Hacked Hacking Suite | -9/Materials | Scanalyzed Lrg. Storage Unit | -9/Materials | Scanalyzed Imp. Hover Unit | -9/Materials | Scanalyzed Imp. Hacking Suite | -7/Factory | Scanalyzed Combat Drone Bay | -7/Data Miner | Free Lgt. Regenerative Plating | -7/Data Miner | Free Biomechanical Wings | -7/Data Miner | Free Exp. Utility Shielding | -7/Data Miner | Free Imp. Heavy Laser | -7/Data Miner | Free Gyrokinetic Inverter | -7/Data Miner | Free Imp. Shock Absorption System | -7/Data Miner | Free Imp. Arc Projector | -7/Data Miner | Free Imp. Gravmag System | -7/Data Miner | Free Imp. Launcher Guidance Computer | -7/Data Miner | Free Adv. Drone Bay | -7/Data Miner | Free Lrn. Terrain Scanner | -7/Data Miner | Free Lgt. Antimatter Reactor | -7/Data Miner | Free Sensor Array | -6/Factory | Hacked Imp. System Restoration Module | -6/Zion | Archive Variable Charge Gun | -6/Zion | Archive Enh. Gauss Cannon | -6/Zion | Archive Imp. Medium Treads | -6/Zion | Archive Adv. Cooling System | -6/Zion | Archive Adv. Melee Analysis Suite | -6/Zion | Archive Adv. Focal Shield | -6/Zion | Archive Force Field | -6/Zion | Archive EM Disruption Field | -6/Zion | Archive Mass Driver | -6/Zion | Archive Hvy. Plasma Cannon | -6/Zion | Archive Adv. System Restoration Module | -6/Zion | Archive Hyp. Gauss Rifle | -6/Zion | Archive Adv. Target Analyzer | -6/Zion | Archive Lrn. Phase Cannon | -6/Zion | Archive Adv. Power Amplifier | -5/Extension | Hacked Quantum Capacitor | -4/Factory | Scanalyzed Adv. Cryofiber Web | -4/Factory | Scanalyzed Adv. ECM Suite | -4/Factory | Scanalyzed Lrn. Sensor Array | -4/Factory | Hacked Robot Schematics ------------------ M-14 Sweeper | -7/Data Miner | Free B-48 Gladiator | -7/Data Miner | Free S-27 Virus | -7/Data Miner | Free X-67 Chaingunner | -7/Data Miner | Free Y-64 Sentinel | -7/Data Miner | Free R-10 Processor | -7/Data Miner | Free G-47 Trooper | -6/Zion | Archive P-60 Hacker | -6/Zion | Archive H-66 Slayer | -6/Zion | Archive Fabricated ------------ Imp. Hacking Suite | x1 | -7/Factory | Preloaded Com. Ion Cannon | x1 | -6/Factory | Preloaded Sensor Array | x2 | -5/Factory Lrn. Sensor Array | x2 | -4/Armory | Authchip Lgt. Antimatter Reactor | x2 | -4/Armory Alien Tech Used ----------------- Core Expander Dimensional Node Initializer Achievements -------------- None Challenges ------------ None Game ------ Seed MyomerRocketShearcannon Manual? 0 Play Time 03:49:00 Cumulative 258.1 hours Start 2024.10.10 @ 15:46:17 End 2024.10.11 @ 18:14:56 Sessions 3 Manual Loads 0 Difficulty Rogue Special Mode None Game No. 135 Rogue 135 Adventurer 0 Explorer 0 Win Type - Total 4 Types 4/0/0/0/0/0/0/0/0 Lore% 41 Gallery% 64 Achievement% 57 Wizard Run 0 Options --------- Layout 0 ASCII 0 Keyboard 1 Movement Vi Keybinds 0 Fullscreen 2 Font 18/SmallcapsGlow Map View 76x50 Zoom Use 0% Tactical HUD 1 Map Filters NONE Filters NONE Steam 1 RUN: 0d69275c-9620-4764-89a9-d069ea6b1527